[Event "Live Chess"]
[Site "Chess.com"]
[Date "2010.12.09"]
[Round "-"]
[White "chenque14"]
[Black "hipposcottimus"]
[Result "1-0"]
[CurrentPosition "8/7p/p5pk/1p5r/3PR3/1BP2PK1/PP4P1/8 b - -"]
[Timezone "UTC"]
[ECO "C45"]
[ECOUrl "https://www.chess.com/openings/Scotch-Game"]
[UTCDate "2010.12.09"]
[UTCTime "04:45:54"]
[WhiteElo "1654"]
[BlackElo "1657"]
[TimeControl "60"]
[Termination "chenque14 won on time"]
[StartTime "04:45:54"]
[EndDate "2010.12.09"]
[EndTime "04:48:08"]
[Link "https://www.chess.com/game/live/75470427"]

1. e4 {[%clk 0:01:00]} 1... e5 {[%clk 0:01:00]} 2. Nf3 {[%clk 0:00:59.3]} 2... Nc6 {[%clk 0:00:59.8]} 3. d4 {[%clk 0:00:58.3]} 3... d5 {[%clk 0:00:58]} 4. exd5 {[%clk 0:00:56.8]} 4... e4 {[%clk 0:00:57.4]} 5. dxc6 {[%clk 0:00:55.7]} 5... exf3 {[%clk 0:00:57]} 6. Qxf3 {[%clk 0:00:54.9]} 6... Rb8 {[%clk 0:00:53.3]} 7. Nc3 {[%clk 0:00:51.9]} 7... Be7 {[%clk 0:00:52.8]} 8. Bb5 {[%clk 0:00:48.9]} 8... b6 {[%clk 0:00:45]} 9. O-O {[%clk 0:00:46.3]} 9... Nf6 {[%clk 0:00:44.5]} 10. Re1 {[%clk 0:00:45]} 10... O-O {[%clk 0:00:43.6]} 11. Bg5 {[%clk 0:00:43.6]} 11... Qd6 {[%clk 0:00:38.9]} 12. Rad1 {[%clk 0:00:41.4]} 12... a6 {[%clk 0:00:38.5]} 13. Ba4 {[%clk 0:00:39.7]} 13... b5 {[%clk 0:00:37.9]} 14. Bb3 {[%clk 0:00:38.7]} 14... Ng4 {[%clk 0:00:30.1]} 15. Bf4 {[%clk 0:00:33.8]} 15... Qf6 {[%clk 0:00:20.9]} 16. Bxc7 {[%clk 0:00:29.4]} 16... Ra8 {[%clk 0:00:18.9]} 17. Be5 {[%clk 0:00:27.5]} 17... Bd6 {[%clk 0:00:18.1]} 18. Bxf6 {[%clk 0:00:24.9]} 18... Bxh2+ {[%clk 0:00:17.8]} 19. Kh1 {[%clk 0:00:23.3]} 19... gxf6 {[%clk 0:00:17.5]} 20. Qxg4+ {[%clk 0:00:22.3]} 20... Bxg4 {[%clk 0:00:15.1]} 21. f3 {[%clk 0:00:20.4]} 21... Bh5 {[%clk 0:00:14.5]} 22. Kxh2 {[%clk 0:00:19.5]} 22... Bg6 {[%clk 0:00:13.8]} 23. Ne4 {[%clk 0:00:17.9]} 23... Kh8 {[%clk 0:00:13.5]} 24. Nxf6 {[%clk 0:00:16.9]} 24... Rac8 {[%clk 0:00:12.7]} 25. Nd7 {[%clk 0:00:16]} 25... Rfd8 {[%clk 0:00:10.6]} 26. Bd5 {[%clk 0:00:14.3]} 26... Rc7 {[%clk 0:00:07.3]} 27. c3 {[%clk 0:00:13.2]} 27... Rcxd7 {[%clk 0:00:06.4]} 28. cxd7 {[%clk 0:00:12.3]} 28... Rxd7 {[%clk 0:00:06.1]} 29. Bb3 {[%clk 0:00:10.8]} 29... Kg7 {[%clk 0:00:05]} 30. Re8 {[%clk 0:00:09.5]} 30... Rd6 {[%clk 0:00:03.4]} 31. Rde1 {[%clk 0:00:08.9]} 31... Rf6 {[%clk 0:00:03]} 32. R1e4 {[%clk 0:00:07.5]} 32... Rf5 {[%clk 0:00:02.7]} 33. Rg4 {[%clk 0:00:06.5]} 33... Rh5+ {[%clk 0:00:02.2]} 34. Kg3 {[%clk 0:00:04.9]} 34... Kh6 {[%clk 0:00:01.7]} 35. Rxg6+ {[%clk 0:00:03.9]} 35... fxg6 {[%clk 0:00:00.4]} 36. Re4 {[%clk 0:00:03.4]} 1-0

[Event "Live Chess"]
[Site "Chess.com"]
[Date "2010.12.09"]
[Round "-"]
[White "hipposcottimus"]
[Black "sonny_widodo"]
[Result "1-0"]
[CurrentPosition "r5kr/pp1nQ3/2p3R1/3p3p/8/2N3B1/PqP2PPP/6K1 b - -"]
[Timezone "UTC"]
[ECO "B02"]
[ECOUrl "https://www.chess.com/openings/Alekhines-Defense-John-Tracy-Gambit"]
[UTCDate "2010.12.09"]
[UTCTime "04:40:09"]
[WhiteElo "1666"]
[BlackElo "2001"]
[TimeControl "60"]
[Termination "hipposcottimus won by checkmate"]
[StartTime "04:40:09"]
[EndDate "2010.12.09"]
[EndTime "04:41:38"]
[Link "https://www.chess.com/game/live/75469281"]

1. e4 {[%clk 0:01:00]} 1... Nf6 {[%clk 0:01:00]} 2. Nf3 {[%clk 0:00:59.7]} 2... Nxe4 {[%clk 0:00:58.7]} 3. d3 {[%clk 0:00:58.7]} 3... Nf6 {[%clk 0:00:57.7]} 4. Nc3 {[%clk 0:00:58.2]} 4... d5 {[%clk 0:00:56.6]} 5. d4 {[%clk 0:00:57.9]} 5... Bg4 {[%clk 0:00:55.7]} 6. Bb5+ {[%clk 0:00:57.6]} 6... c6 {[%clk 0:00:54.3]} 7. Be2 {[%clk 0:00:57.4]} 7... e6 {[%clk 0:00:53.9]} 8. O-O {[%clk 0:00:56.9]} 8... Bd6 {[%clk 0:00:53.4]} 9. Re1 {[%clk 0:00:56.5]} 9... Nbd7 {[%clk 0:00:52.8]} 10. Ne5 {[%clk 0:00:56.1]} 10... Nxe5 {[%clk 0:00:46.3]} 11. dxe5 {[%clk 0:00:53.7]} 11... Bxe2 {[%clk 0:00:45]} 12. Rxe2 {[%clk 0:00:49.1]} 12... Bxe5 {[%clk 0:00:41.1]} 13. Rxe5 {[%clk 0:00:48.7]} 13... Qd6 {[%clk 0:00:39.8]} 14. Bf4 {[%clk 0:00:44.6]} 14... g5 {[%clk 0:00:36.5]} 15. Bg3 {[%clk 0:00:35.8]} 15... Qb4 {[%clk 0:00:35.6]} 16. Qd2 {[%clk 0:00:31]} 16... Qxb2 {[%clk 0:00:34.4]} 17. Rae1 {[%clk 0:00:30.6]} 17... h5 {[%clk 0:00:31.7]} 18. Qxg5 {[%clk 0:00:27.9]} 18... Nd7 {[%clk 0:00:27.7]} 19. Rxe6+ {[%clk 0:00:23.9]} 19... fxe6 {[%clk 0:00:25.1]} 20. Rxe6+ {[%clk 0:00:23.6]} 20... Kf7 {[%clk 0:00:23.6]} 21. Qe7+ {[%clk 0:00:23.2]} 21... Kg8 {[%clk 0:00:22.3]} 22. Rg6# {[%clk 0:00:20.4]} 1-0

[Event "Live Chess"]
[Site "Chess.com"]
[Date "2010.12.09"]
[Round "-"]
[White "hipposcottimus"]
[Black "shanddog"]
[Result "1-0"]
[CurrentPosition "r1b1k2Q/ppppqp1p/7p/3P4/2B5/P7/5PPP/4R1K1 b - -"]
[Timezone "UTC"]
[ECO "C51"]
[ECOUrl "https://www.chess.com/openings/Giuoco-Piano-Game-Evans-Accepted-Stone-Ware-Variation"]
[UTCDate "2010.12.09"]
[UTCTime "04:33:01"]
[WhiteElo "1417"]
[BlackElo "1554"]
[TimeControl "300"]
[Termination "hipposcottimus won by checkmate"]
[StartTime "04:33:01"]
[EndDate "2010.12.09"]
[EndTime "04:35:15"]
[Link "https://www.chess.com/game/live/75467857"]

1. e4 {[%clk 0:05:00]} 1... e5 {[%clk 0:05:00]} 2. Nf3 {[%clk 0:04:59.6]} 2... Nc6 {[%clk 0:04:58]} 3. Bc4 {[%clk 0:04:59.2]} 3... Bc5 {[%clk 0:04:51.7]} 4. b4 {[%clk 0:04:55.4]} 4... Bxb4 {[%clk 0:04:49.9]} 5. c3 {[%clk 0:04:54]} 5... Bd6 {[%clk 0:04:45.7]} 6. O-O {[%clk 0:04:50.3]} 6... Nh6 {[%clk 0:04:40.5]} 7. d4 {[%clk 0:04:48.4]} 7... exd4 {[%clk 0:04:39.2]} 8. Bxh6 {[%clk 0:04:46.8]} 8... gxh6 {[%clk 0:04:37.8]} 9. cxd4 {[%clk 0:04:45.1]} 9... Qe7 {[%clk 0:04:31.4]} 10. e5 {[%clk 0:04:43.8]} 10... Bb4 {[%clk 0:04:26.3]} 11. a3 {[%clk 0:04:38.1]} 11... Ba5 {[%clk 0:04:24.5]} 12. d5 {[%clk 0:04:30.9]} 12... Nxe5 {[%clk 0:04:19.7]} 13. Nxe5 {[%clk 0:04:28.6]} 13... Qxe5 {[%clk 0:04:18.2]} 14. Nd2 {[%clk 0:04:28.3]} 14... Bxd2 {[%clk 0:04:06.6]} 15. Qxd2 {[%clk 0:04:27.6]} 15... Qd6 {[%clk 0:04:04.3]} 16. Rfe1+ {[%clk 0:04:24.4]} 16... Kd8 {[%clk 0:04:00.4]} 17. Qd4 {[%clk 0:04:21.5]} 17... Re8 {[%clk 0:03:56.7]} 18. Rxe8+ {[%clk 0:04:17.7]} 18... Kxe8 {[%clk 0:03:55.5]} 19. Re1+ {[%clk 0:04:14.3]} 19... Qe7 {[%clk 0:03:45.8]} 20. Qh8# {[%clk 0:04:10.2]} 1-0

[Event "Live Chess"]
[Site "Chess.com"]
[Date "2010.12.09"]
[Round "-"]
[White "kiko_matching"]
[Black "hipposcottimus"]
[Result "1-0"]
[CurrentPosition "r4rk1/p1qnb1Qp/b1p5/2Pp4/1P2pN2/P3P3/1BB3PP/R4RK1 b - -"]
[Timezone "UTC"]
[ECO "D00"]
[ECOUrl "https://www.chess.com/openings/Queens-Pawn-Opening-1...d5-2.e3"]
[UTCDate "2010.12.09"]
[UTCTime "04:31:11"]
[WhiteElo "1974"]
[BlackElo "1666"]
[TimeControl "60"]
[Termination "kiko_matching won by checkmate"]
[StartTime "04:31:11"]
[EndDate "2010.12.09"]
[EndTime "04:32:03"]
[Link "https://www.chess.com/game/live/75467532"]

1. d4 {[%clk 0:01:00]} 1... d5 {[%clk 0:01:00]} 2. e3 {[%clk 0:00:59.7]} 2... c6 {[%clk 0:00:59.9]} 3. c4 {[%clk 0:00:59.4]} 3... Nd7 {[%clk 0:00:59.2]} 4. Nc3 {[%clk 0:00:59.1]} 4... e6 {[%clk 0:00:58.8]} 5. a3 {[%clk 0:00:58.8]} 5... Ngf6 {[%clk 0:00:58.4]} 6. b3 {[%clk 0:00:58.1]} 6... Ne4 {[%clk 0:00:58.3]} 7. Bb2 {[%clk 0:00:56.1]} 7... Be7 {[%clk 0:00:54.9]} 8. Qc2 {[%clk 0:00:54.4]} 8... f5 {[%clk 0:00:52.7]} 9. Bd3 {[%clk 0:00:52.9]} 9... O-O {[%clk 0:00:51]} 10. f3 {[%clk 0:00:52.2]} 10... Nxc3 {[%clk 0:00:49]} 11. Qxc3 {[%clk 0:00:51.9]} 11... Bf6 {[%clk 0:00:46.8]} 12. Ne2 {[%clk 0:00:51]} 12... e5 {[%clk 0:00:46.2]} 13. O-O {[%clk 0:00:48.2]} 13... e4 {[%clk 0:00:45.8]} 14. fxe4 {[%clk 0:00:46.9]} 14... fxe4 {[%clk 0:00:45.5]} 15. Bc2 {[%clk 0:00:45.8]} 15... Qc7 {[%clk 0:00:44.7]} 16. Nf4 {[%clk 0:00:44.8]} 16... Be7 {[%clk 0:00:43.7]} 17. b4 {[%clk 0:00:42.1]} 17... b6 {[%clk 0:00:41.5]} 18. c5 {[%clk 0:00:41.5]} 18... bxc5 {[%clk 0:00:40.2]} 19. dxc5 {[%clk 0:00:40.4]} 19... Ba6 {[%clk 0:00:39.2]} 20. Qxg7# {[%clk 0:00:39.2]} 1-0

[Event "Live Chess"]
[Site "Chess.com"]
[Date "2010.12.09"]
[Round "-"]
[White "MasonWiest"]
[Black "hipposcottimus"]
[Result "1-0"]
[CurrentPosition "1k1r2r1/ppp1bQ1p/8/8/P2B4/2P3P1/1PP4P/R5K1 b - -"]
[Timezone "UTC"]
[ECO "C30"]
[ECOUrl "https://www.chess.com/openings/Kings-Gambit-Declined-Queens-Knight-Defense-3.Nf3"]
[UTCDate "2010.12.09"]
[UTCTime "04:29:23"]
[WhiteElo "1825"]
[BlackElo "1668"]
[TimeControl "60+1"]
[Termination "MasonWiest won by resignation"]
[StartTime "04:29:23"]
[EndDate "2010.12.09"]
[EndTime "04:30:59"]
[Link "https://www.chess.com/game/live/75467065"]

1. e4 {[%clk 0:01:00]} 1... e5 {[%clk 0:01:00]} 2. f4 {[%clk 0:01:00.5]} 2... Nc6 {[%clk 0:01:00.8]} 3. Nf3 {[%clk 0:01:00.8]} 3... d5 {[%clk 0:01:00.5]} 4. exd5 {[%clk 0:00:59.4]} 4... e4 {[%clk 0:01:01.2]} 5. Ne5 {[%clk 0:00:58.6]} 5... Qxd5 {[%clk 0:00:58.5]} 6. Nxc6 {[%clk 0:00:58.3]} 6... Qxc6 {[%clk 0:00:58.2]} 7. a4 {[%clk 0:00:56.7]} 7... Nf6 {[%clk 0:00:58.6]} 8. Bb5 {[%clk 0:00:56.5]} 8... Bd7 {[%clk 0:00:53.6]} 9. Bxc6 {[%clk 0:00:56.3]} 9... Bxc6 {[%clk 0:00:54.3]} 10. O-O {[%clk 0:00:56.9]} 10... Nd5 {[%clk 0:00:53.5]} 11. Nc3 {[%clk 0:00:55.4]} 11... Nxc3 {[%clk 0:00:50.3]} 12. dxc3 {[%clk 0:00:55.3]} 12... Bd6 {[%clk 0:00:51.1]} 13. Be3 {[%clk 0:00:52.1]} 13... O-O-O {[%clk 0:00:51.8]} 14. Qg4+ {[%clk 0:00:51.2]} 14... Bd7 {[%clk 0:00:49.8]} 15. f5 {[%clk 0:00:50.6]} 15... g6 {[%clk 0:00:48]} 16. Qxe4 {[%clk 0:00:50.4]} 16... Bxf5 {[%clk 0:00:45.3]} 17. Rxf5 {[%clk 0:00:48.5]} 17... gxf5 {[%clk 0:00:42]} 18. Qxf5+ {[%clk 0:00:49.1]} 18... Kb8 {[%clk 0:00:41]} 19. Bd4 {[%clk 0:00:48.7]} 19... Rhg8 {[%clk 0:00:41.7]} 20. g3 {[%clk 0:00:42.6]} 20... Be7 {[%clk 0:00:35.1]} 21. Qxf7 {[%clk 0:00:40.4]} 1-0

[Event "Live Chess"]
[Site "Chess.com"]
[Date "2010.12.09"]
[Round "-"]
[White "boh"]
[Black "hipposcottimus"]
[Result "1-0"]
[CurrentPosition "8/6Q1/8/3p4/3P4/5k2/2K2n1p/4R3 b - -"]
[Timezone "UTC"]
[ECO "C21"]
[ECOUrl "https://www.chess.com/openings/Danish-Gambit"]
[UTCDate "2010.12.09"]
[UTCTime "02:23:59"]
[WhiteElo "1400"]
[BlackElo "1405"]
[TimeControl "600"]
[Termination "boh won on time"]
[StartTime "02:23:59"]
[EndDate "2010.12.09"]
[EndTime "02:39:47"]
[Link "https://www.chess.com/game/live/75440597"]

1. e4 {[%clk 0:10:00]} 1... e5 {[%clk 0:10:00]} 2. d4 {[%clk 0:09:58.8]} 2... exd4 {[%clk 0:09:55.8]} 3. c3 {[%clk 0:09:57.9]} 3... Nf6 {[%clk 0:09:47.6]} 4. e5 {[%clk 0:09:52]} 4... Qe7 {[%clk 0:09:36.5]} 5. Nf3 {[%clk 0:09:47.2]} 5... d6 {[%clk 0:09:32.1]} 6. cxd4 {[%clk 0:09:39.1]} 6... Bg4 {[%clk 0:09:23.3]} 7. Be2 {[%clk 0:09:12.8]} 7... Bxf3 {[%clk 0:09:11.2]} 8. exf6 {[%clk 0:09:01.1]} 8... Bxe2 {[%clk 0:07:33.1]} 9. fxe7 {[%clk 0:08:53.7]} 9... Bxd1 {[%clk 0:07:30.5]} 10. exf8=Q+ {[%clk 0:08:50.3]} 10... Rxf8 {[%clk 0:07:24.7]} 11. Kxd1 {[%clk 0:08:47.3]} 11... Nd7 {[%clk 0:07:19.7]} 12. Nc3 {[%clk 0:08:43.3]} 12... O-O-O {[%clk 0:07:16.5]} 13. Be3 {[%clk 0:08:24]} 13... f5 {[%clk 0:07:07]} 14. f4 {[%clk 0:08:14.7]} 14... Rf6 {[%clk 0:06:57.5]} 15. Re1 {[%clk 0:07:58.5]} 15... h6 {[%clk 0:06:53]} 16. a4 {[%clk 0:07:21.8]} 16... Nb6 {[%clk 0:06:43.8]} 17. b4 {[%clk 0:06:59.4]} 17... d5 {[%clk 0:06:37.2]} 18. Nb5 {[%clk 0:06:39.3]} 18... a6 {[%clk 0:06:13.7]} 19. Bf2 {[%clk 0:06:23.2]} 19... axb5 {[%clk 0:06:07.2]} 20. Bh4 {[%clk 0:06:18.4]} 20... g5 {[%clk 0:06:02.4]} 21. fxg5 {[%clk 0:06:16]} 21... Rg6 {[%clk 0:06:00.6]} 22. gxh6 {[%clk 0:06:10.8]} 22... Rh8 {[%clk 0:05:59.9]} 23. Bg3 {[%clk 0:05:35.3]} 23... bxa4 {[%clk 0:05:40.7]} 24. Re7 {[%clk 0:05:24.8]} 24... c6 {[%clk 0:04:46.5]} 25. Rc7+ {[%clk 0:05:12.9]} 25... Kd8 {[%clk 0:04:32.8]} 26. Rxb7 {[%clk 0:05:11.4]} 26... Nc4 {[%clk 0:04:29.5]} 27. Rb8+ {[%clk 0:05:07.4]} 27... Kd7 {[%clk 0:04:18.2]} 28. Rxh8 {[%clk 0:05:05.6]} 28... Ne3+ {[%clk 0:04:17.1]} 29. Kc1 {[%clk 0:04:47]} 29... Nxg2 {[%clk 0:04:08.9]} 30. Rxa4 {[%clk 0:04:44.3]} 30... f4 {[%clk 0:04:06.1]} 31. Ra7+ {[%clk 0:04:22.6]} 31... Ke6 {[%clk 0:03:47.4]} 32. Ra6 {[%clk 0:03:57.2]} 32... fxg3 {[%clk 0:03:37.6]} 33. Rxc6+ {[%clk 0:03:55.5]} 33... Kf5 {[%clk 0:03:36.7]} 34. Rxg6 {[%clk 0:03:50.7]} 34... gxh2 {[%clk 0:03:33.4]} 35. Rf8+ {[%clk 0:03:29.5]} 35... Kxg6 {[%clk 0:03:21.2]} 36. Rf1 {[%clk 0:03:26.9]} 36... Ne3 {[%clk 0:03:00.5]} 37. Rh1 {[%clk 0:03:23.2]} 37... Ng4 {[%clk 0:02:57.1]} 38. b5 {[%clk 0:03:20.5]} 38... Kxh6 {[%clk 0:02:35.3]} 39. b6 {[%clk 0:03:17.2]} 39... Kh5 {[%clk 0:02:35]} 40. b7 {[%clk 0:03:14.2]} 40... Kh4 {[%clk 0:02:34.7]} 41. b8=Q {[%clk 0:03:11.7]} 41... Kh3 {[%clk 0:02:33.8]} 42. Qh8+ {[%clk 0:03:05.3]} 42... Kg2 {[%clk 0:02:30.8]} 43. Re1 {[%clk 0:02:52.9]} 43... Nf2 {[%clk 0:02:13.6]} 44. Qg7+ {[%clk 0:02:45.4]} 44... Kf3 {[%clk 0:02:02.3]} 45. Kc2 {[%clk 0:02:32.6]} 1-0

[Event "Live Chess"]
[Site "Chess.com"]
[Date "2010.12.09"]
[Round "-"]
[White "hipposcottimus"]
[Black "Eabani"]
[Result "0-1"]
[CurrentPosition "2r5/p3kppp/4p3/N2R4/8/1N6/n1r2bPP/4R1K1 w - -"]
[Timezone "UTC"]
[ECO "C02"]
[ECOUrl "https://www.chess.com/openings/French-Defense-Advance-Nimzowitsch-System"]
[UTCDate "2010.12.09"]
[UTCTime "00:34:49"]
[WhiteElo "1414"]
[BlackElo "1485"]
[TimeControl "300+5"]
[Termination "Eabani won by resignation"]
[StartTime "00:34:49"]
[EndDate "2010.12.09"]
[EndTime "00:46:26"]
[Link "https://www.chess.com/game/live/75417578"]

1. e4 {[%clk 0:05:00]} 1... e6 {[%clk 0:05:00]} 2. Nf3 {[%clk 0:05:04.6]} 2... d5 {[%clk 0:05:02.8]} 3. e5 {[%clk 0:05:08.9]} 3... c5 {[%clk 0:04:59.5]} 4. d4 {[%clk 0:05:09.5]} 4... cxd4 {[%clk 0:04:57.5]} 5. Nxd4 {[%clk 0:05:05.3]} 5... Qb6 {[%clk 0:04:47.4]} 6. Bb5+ {[%clk 0:04:58.9]} 6... Bd7 {[%clk 0:04:43.6]} 7. Bxd7+ {[%clk 0:05:01.3]} 7... Nxd7 {[%clk 0:04:46.7]} 8. O-O {[%clk 0:05:06]} 8... Nxe5 {[%clk 0:04:47.3]} 9. Be3 {[%clk 0:05:04.8]} 9... Qxb2 {[%clk 0:04:48.1]} 10. Nd2 {[%clk 0:05:03.4]} 10... Qc3 {[%clk 0:04:01.5]} 11. N2b3 {[%clk 0:05:03.4]} 11... Nc4 {[%clk 0:03:52.8]} 12. Nb5 {[%clk 0:04:23.3]} 12... Nxe3 {[%clk 0:03:54.6]} 13. Nxc3 {[%clk 0:04:26.9]} 13... Nxd1 {[%clk 0:03:56.6]} 14. Rfxd1 {[%clk 0:04:31]} 14... Be7 {[%clk 0:03:28.4]} 15. Nb5 {[%clk 0:04:29.2]} 15... Bd8 {[%clk 0:03:20]} 16. Nd6+ {[%clk 0:04:31.9]} 16... Ke7 {[%clk 0:03:23.6]} 17. Nxb7 {[%clk 0:04:35.5]} 17... Rc8 {[%clk 0:03:04]} 18. Rd2 {[%clk 0:04:01.9]} 18... Nf6 {[%clk 0:02:46.4]} 19. Nd4 {[%clk 0:03:03.2]} 19... Bb6 {[%clk 0:02:05.6]} 20. Nb3 {[%clk 0:02:11.4]} 20... Rc7 {[%clk 0:01:44.1]} 21. N7a5 {[%clk 0:02:13.2]} 21... Rhc8 {[%clk 0:01:43.2]} 22. Rc1 {[%clk 0:02:02]} 22... Ne4 {[%clk 0:01:22.4]} 23. Re2 {[%clk 0:01:42.4]} 23... Nc3 {[%clk 0:01:25.9]} 24. Rd2 {[%clk 0:01:23.7]} 24... Nxa2 {[%clk 0:01:29.4]} 25. Re1 {[%clk 0:01:26.9]} 25... Rxc2 {[%clk 0:01:29]} 26. Rxd5 {[%clk 0:01:29.1]} 26... Bxf2+ {[%clk 0:01:27.5]} 0-1

[Event "Live Chess"]
[Site "Chess.com"]
[Date "2010.12.08"]
[Round "-"]
[White "KongeJaeger"]
[Black "hipposcottimus"]
[Result "0-1"]
[CurrentPosition "r4rk1/1pp2ppp/pn5B/2qP1P2/5N2/6n1/PPP3PP/R4R1K w - -"]
[Timezone "UTC"]
[ECO "C31"]
[ECOUrl "https://www.chess.com/openings/Kings-Gambit-Declined-Falkbeer-Accepted-Staunton-Line-4.Nc3-Nf6"]
[UTCDate "2010.12.08"]
[UTCTime "20:28:21"]
[WhiteElo "1496"]
[BlackElo "1421"]
[TimeControl "300+10"]
[Termination "hipposcottimus won by resignation"]
[StartTime "20:28:21"]
[EndDate "2010.12.08"]
[EndTime "20:36:22"]
[Link "https://www.chess.com/game/live/75355274"]

1. e4 {[%clk 0:05:00]} 1... e5 {[%clk 0:05:00]} 2. f4 {[%clk 0:05:08.3]} 2... d5 {[%clk 0:05:06.7]} 3. exd5 {[%clk 0:05:00.8]} 3... e4 {[%clk 0:05:14.4]} 4. Nc3 {[%clk 0:04:52]} 4... Nf6 {[%clk 0:05:21.4]} 5. Bb5+ {[%clk 0:04:27.3]} 5... Bd7 {[%clk 0:05:19.3]} 6. Bxd7+ {[%clk 0:04:34.2]} 6... Nbxd7 {[%clk 0:05:28.5]} 7. Nge2 {[%clk 0:04:37.8]} 7... Nb6 {[%clk 0:05:33.7]} 8. O-O {[%clk 0:04:38.5]} 8... Bc5+ {[%clk 0:05:31.5]} 9. Kh1 {[%clk 0:04:29.2]} 9... O-O {[%clk 0:05:37.7]} 10. d4 {[%clk 0:04:35.3]} 10... exd3 {[%clk 0:05:44.6]} 11. Qxd3 {[%clk 0:04:37.9]} 11... a6 {[%clk 0:05:35.2]} 12. f5 {[%clk 0:04:04.9]} 12... Ng4 {[%clk 0:05:17.8]} 13. Ne4 {[%clk 0:04:08.2]} 13... Bd6 {[%clk 0:04:58.4]} 14. Nxd6 {[%clk 0:04:04.4]} 14... Qxd6 {[%clk 0:05:05.3]} 15. Bf4 {[%clk 0:04:05.9]} 15... Qc5 {[%clk 0:05:11.4]} 16. Qg3 {[%clk 0:03:50]} 16... Nf6 {[%clk 0:04:15.8]} 17. Bh6 {[%clk 0:03:51.2]} 17... Nh5 {[%clk 0:04:22.5]} 18. Nf4 {[%clk 0:03:41]} 18... Nxg3+ {[%clk 0:04:27]} 0-1

[Event "Live Chess"]
[Site "Chess.com"]
[Date "2010.12.08"]
[Round "-"]
[White "hipposcottimus"]
[Black "Djamiat"]
[Result "0-1"]
[CurrentPosition "2k5/Q1p3pp/1p5r/3p4/1P1N4/6P1/1PP2qP1/R6K w - -"]
[Timezone "UTC"]
[ECO "C42"]
[ECOUrl "https://www.chess.com/openings/Petrovs-Defense-Urusov-Gambit"]
[UTCDate "2010.12.08"]
[UTCTime "04:43:45"]
[WhiteElo "1673"]
[BlackElo "1574"]
[TimeControl "60"]
[Termination "Djamiat won by checkmate"]
[StartTime "04:43:45"]
[EndDate "2010.12.08"]
[EndTime "04:45:45"]
[Link "https://www.chess.com/game/live/75143145"]

1. e4 {[%clk 0:01:00]} 1... e5 {[%clk 0:01:00]} 2. Nf3 {[%clk 0:00:59.6]} 2... Nf6 {[%clk 0:00:59.6]} 3. Bc4 {[%clk 0:00:59.3]} 3... d6 {[%clk 0:00:57.9]} 4. Ng5 {[%clk 0:00:58.3]} 4... Be6 {[%clk 0:00:56.4]} 5. Bxe6 {[%clk 0:00:52.8]} 5... fxe6 {[%clk 0:00:55.2]} 6. Nxe6 {[%clk 0:00:52.5]} 6... Qe7 {[%clk 0:00:53.7]} 7. Nxf8 {[%clk 0:00:51.5]} 7... Rxf8 {[%clk 0:00:52.6]} 8. d4 {[%clk 0:00:51.1]} 8... Nxe4 {[%clk 0:00:50.8]} 9. O-O {[%clk 0:00:48.1]} 9... exd4 {[%clk 0:00:48.4]} 10. Qxd4 {[%clk 0:00:46.4]} 10... Nc6 {[%clk 0:00:46.1]} 11. Qd3 {[%clk 0:00:43.4]} 11... Nb4 {[%clk 0:00:39.4]} 12. Qd4 {[%clk 0:00:38.8]} 12... d5 {[%clk 0:00:37.7]} 13. Na3 {[%clk 0:00:36.5]} 13... O-O-O {[%clk 0:00:36.8]} 14. Qxa7 {[%clk 0:00:25.5]} 14... b6 {[%clk 0:00:32.6]} 15. Nb5 {[%clk 0:00:19.2]} 15... Rxf2 {[%clk 0:00:25.8]} 16. Nd4 {[%clk 0:00:17.2]} 16... Rf6 {[%clk 0:00:20.1]} 17. Rxf6 {[%clk 0:00:14.1]} 17... Qxf6 {[%clk 0:00:19.1]} 18. Bf4 {[%clk 0:00:09]} 18... Qxf4 {[%clk 0:00:17.2]} 19. a3 {[%clk 0:00:05.4]} 19... Qf2+ {[%clk 0:00:15.9]} 20. Kh1 {[%clk 0:00:04.1]} 20... Rd6 {[%clk 0:00:12.9]} 21. axb4 {[%clk 0:00:03.2]} 21... Ng3+ {[%clk 0:00:10.6]} 22. hxg3 {[%clk 0:00:01.1]} 22... Rh6# {[%clk 0:00:10]} 0-1

[Event "Live Chess"]
[Site "Chess.com"]
[Date "2010.12.08"]
[Round "-"]
[White "Djamiat"]
[Black "hipposcottimus"]
[Result "1-0"]
[CurrentPosition "3r1rk1/pp3ppp/2qbnN2/8/6Q1/8/PPP2PPP/3R1RK1 b - -"]
[Timezone "UTC"]
[ECO "C65"]
[ECOUrl "https://www.chess.com/openings/Ruy-Lopez-Opening-Berlin-Defense-4.d4"]
[UTCDate "2010.12.08"]
[UTCTime "04:41:34"]
[WhiteElo "1562"]
[BlackElo "1683"]
[TimeControl "60"]
[Termination "Djamiat won on time"]
[StartTime "04:41:34"]
[EndDate "2010.12.08"]
[EndTime "04:43:22"]
[Link "https://www.chess.com/game/live/75142725"]

1. e4 {[%clk 0:01:00]} 1... e5 {[%clk 0:01:00]} 2. Nf3 {[%clk 0:00:59.4]} 2... Nc6 {[%clk 0:00:59.7]} 3. Bb5 {[%clk 0:00:57.4]} 3... Nf6 {[%clk 0:00:59.4]} 4. d4 {[%clk 0:00:55.3]} 4... Nxd4 {[%clk 0:00:57.6]} 5. Nxd4 {[%clk 0:00:53.3]} 5... exd4 {[%clk 0:00:57.3]} 6. Qxd4 {[%clk 0:00:52.2]} 6... c6 {[%clk 0:00:57.1]} 7. Qe5+ {[%clk 0:00:50.6]} 7... Be7 {[%clk 0:00:56.8]} 8. Bc4 {[%clk 0:00:48.6]} 8... d5 {[%clk 0:00:53.2]} 9. exd5 {[%clk 0:00:46.7]} 9... cxd5 {[%clk 0:00:50]} 10. Bb5+ {[%clk 0:00:46.1]} 10... Bd7 {[%clk 0:00:47.4]} 11. Bxd7+ {[%clk 0:00:45.4]} 11... Qxd7 {[%clk 0:00:46.1]} 12. O-O {[%clk 0:00:43.4]} 12... O-O {[%clk 0:00:44.5]} 13. Bg5 {[%clk 0:00:41.5]} 13... Bd6 {[%clk 0:00:39.9]} 14. Qd4 {[%clk 0:00:38.9]} 14... Ne4 {[%clk 0:00:36.2]} 15. Nc3 {[%clk 0:00:36.7]} 15... Nxg5 {[%clk 0:00:33.4]} 16. Nxd5 {[%clk 0:00:33.2]} 16... Ne6 {[%clk 0:00:20.8]} 17. Qd3 {[%clk 0:00:30.8]} 17... Qc6 {[%clk 0:00:15]} 18. Rad1 {[%clk 0:00:27.2]} 18... Nc5 {[%clk 0:00:11.1]} 19. Qd4 {[%clk 0:00:25.2]} 19... Rad8 {[%clk 0:00:05.2]} 20. Qg4 {[%clk 0:00:24]} 20... Ne6 {[%clk 0:00:01.2]} 21. Nf6+ {[%clk 0:00:22]} 1-0